fUST/lending_fUST_20250527
["ID","MTS","AMOUNT","RATE_DAILY","PERIOD"]
[362501137,1748340886453,162.801861,0.00013699,2]
[362501150,1748341612743,531.52553847,0.00024657,120]
[362501151,1748341625129,-203.39525131,0.00018177,2]
[362501152,1748341645111,-55.63815109,0.00018177,2]
[362501153,1748341645134,-1907.815517,0.00018185,2]
[362501154,1748341645157,-373.960715,0.00018293,2]
[362501155,1748341645179,-567.791233,0.00018339,2]
[362501156,1748341645200,-192.74847749,0.00018801,2]
[362501157,1748341645222,-445.72489537,0.00019078,2]
[362501158,1748341645245,-333.069405,0.00019115,2]
[362501159,1748341645267,-300.0,0.00019175,2]
[362501160,1748341645289,-300.0,0.00019175,2]
[362501161,1748341645311,-300.0,0.00019175,2]
[362501162,1748341645336,-300.0,0.00019175,2]
[362501163,1748341645358,-500.0,0.00019176,2]
[362501164,1748341645380,-391.94470778,0.00019176,2]
[362501165,1748341645406,-500.0,0.00019176,2]
[362501166,1748341645429,-500.0,0.00019176,2]
[362501167,1748341645452,-500.0,0.00019176,2]
[362501168,1748341645477,-95.3182902,0.00019176,2]
[362501169,1748341693094,411.55476276,0.00010618,2]
[362501173,1748341694878,2563.95444387,0.000125,2]
[362501174,1748341694902,8720.0376563,0.000125,2]
[362501176,1748341705638,1711.04535734,0.00013,2]
[362501178,1748341718494,1000.0,0.0001,2]
[362501179,1748341720411,8710.80948259,0.0002,120]
[362501180,1748341748194,-421.4,0.00018,2]
[362501195,1748341831977,-123.20858377,0.00018,2]
[362501201,1748341832125,-1001.36607309,0.00018,2]
[362501203,1748341832136,-356.57991628,0.00019078,2]
[362501204,1748341832146,-300.0,0.00019175,2]
[362501206,1748341832156,-404.6817098,0.00019176,2]
[362501207,1748341832166,-500.0,0.00019176,2]
[362501209,1748341832175,-500.0,0.00019176,2]
[362501210,1748341832185,-500.0,0.00019176,2]
[362501211,1748341832194,-500.0,0.00019176,2]
[362501212,1748341832204,-500.0,0.00019176,2]
[362501213,1748341832214,-500.0,0.00019176,2]
[362501214,1748341832223,-500.0,0.00019176,2]
[362501215,1748341832233,-500.0,0.00019176,2]
[362501216,1748341832243,-510.7663144,0.00019176,2]
[362501217,1748341832254,-500.0,0.00019176,2]
[362501218,1748341832264,-500.0,0.00019176,2]
[362501219,1748341832274,-500.0,0.00019176,2]
[362501220,1748341832284,-500.0,0.00019176,2]
[362501222,1748341832293,-500.0,0.00019176,2]
[362501224,1748341832303,-500.0,0.00019176,2]
[362501226,1748341832312,-500.0,0.00019176,2]
[362501227,1748341832322,-500.0,0.00019176,2]
[362501228,1748341832332,-500.0,0.00019176,2]
[362501229,1748341832341,-500.0,0.00019176,2]
[362501230,1748341832351,-500.0,0.00019176,2]
[362501231,1748341832359,-500.0,0.00019176,2]
[362501232,1748341832370,-500.0,0.00019176,2]
[362501233,1748341832379,-500.0,0.00019176,2]
[362501234,1748341832389,-500.0,0.00019176,2]
[362501235,1748341832398,-500.0,0.00019176,2]
[362501236,1748341832408,-542.60998766,0.00019176,2]
[362501237,1748341832418,-449.51954806,0.00019176,2]
[362501238,1748341832427,-500.0,0.00019176,2]
[362501239,1748341832437,-500.0,0.00019176,2]
[362501240,1748341832449,-500.0,0.00019176,2]
[362501241,1748341832460,-500.0,0.00019176,2]
[362501242,1748341832469,-500.0,0.00019176,2]
[362501243,1748341832628,-500.0,0.00019176,2]
[362501244,1748341832639,-500.0,0.00019176,2]
[362501245,1748341832649,-500.0,0.00019176,2]
[362501246,1748341832659,-500.0,0.00019176,2]
[362501247,1748341832668,-500.0,0.00019176,2]
[362501248,1748341832678,-500.0,0.00019176,2]
[362501249,1748341832687,-500.0,0.00019176,2]
[362501250,1748341832697,-500.0,0.00019176,2]
[362501251,1748341832707,-500.0,0.00019176,2]
[362501252,1748341832716,-212.49596251,0.00019177,2]
[362501253,1748341832726,-196.63340155,0.00019177,2]
[362501254,1748341832736,-159.70961799,0.00019177,2]
[362501255,1748341832746,-513.48114814,0.00019177,2]
[362501256,1748341832755,-513.48114814,0.00019177,2]
[362501257,1748341832765,-513.48114814,0.00019177,2]
[362501258,1748341832774,-513.48114814,0.00019177,2]
[362501259,1748341832784,-513.48114814,0.00019177,2]
[362501260,1748341832794,-513.48114814,0.00019177,2]
[362501261,1748341832803,-513.48114814,0.00019177,2]
[362501262,1748341832813,-513.48114814,0.00019177,2]
[362501263,1748341832826,-513.48114814,0.00019177,2]
[362501264,1748341832835,-513.48114814,0.00019177,2]
[362501265,1748341832844,-513.48114814,0.00019177,2]
[362501266,1748341832854,-513.48114814,0.00019177,2]
[362501267,1748341832863,-513.48114814,0.00019177,2]
[362501268,1748341832873,-513.48114814,0.00019177,2]
[362501269,1748341832884,-513.48114814,0.00019177,2]
[362501270,1748341832894,-513.48114814,0.00019177,2]
[362501271,1748341832904,-546.15722121,0.00019177,2]
[362501272,1748341832915,-546.15722121,0.00019177,2]
[362501273,1748341832924,-546.15722121,0.00019177,2]
[362501274,1748341832934,-546.15722121,0.00019177,2]
[362501275,1748341832943,-546.15722121,0.00019177,2]
[362501276,1748341832953,-546.15722121,0.00019177,2]
[362501277,1748341832963,-546.15722121,0.00019177,2]
[362501278,1748341832972,-546.15722121,0.00019177,2]
[362501279,1748341832982,-546.15722121,0.00019177,2]
[362501280,1748341832992,-546.15722121,0.00019177,2]
[362501281,1748341833002,-914.81334552,0.00019177,2]
[362501282,1748341833012,-430.0,0.00019178,2]
[362501283,1748341833021,-430.0,0.00019178,2]
[362501284,1748341833031,-430.0,0.00019178,2]
[362501285,1748341833043,-430.0,0.00019178,2]
[362501286,1748341833053,-167.96451252,0.00019178,2]
[362501287,1748341833063,-430.0,0.00019178,2]
[362501288,1748341833075,-470.0,0.00019178,2]
[362501289,1748341833086,-430.0,0.00019178,2]
[362501290,1748341833096,-270.0,0.00019178,2]
[362501291,1748341833106,-430.0,0.00019178,2]
[362501292,1748341833117,-270.0,0.00019178,2]
[362501293,1748341833127,-420.0,0.00019178,2]
[362501294,1748341833137,-402.14819521,0.00019178,2]
[362501295,1748341833147,-479.46108759,0.00019178,2]
[362501296,1748341833156,-270.0,0.00019178,2]
[362501297,1748341833166,-430.0,0.00019178,2]
[362501298,1748341833176,-430.0,0.00019178,2]
[362501299,1748341833186,-325.77514038,0.00019178,2]
[362501300,1748341833196,-430.0,0.00019178,2]
[362501301,1748341833205,-430.0,0.00019178,2]
[362501302,1748341833215,-430.0,0.00019178,2]
[362501303,1748341833225,-270.0,0.00019178,2]
[362501304,1748341833235,-430.0,0.00019178,2]
[362501305,1748341833244,-430.0,0.00019178,2]
[362501306,1748341833254,-450.0,0.00019178,2]
[362501307,1748341833264,-430.0,0.00019178,2]
[362501308,1748341833276,-430.0,0.00019178,2]
[362501309,1748341833286,-400.0,0.00019178,2]
[362501310,1748341833296,-430.0,0.00019178,2]
[362501311,1748341833306,-430.0,0.00019178,2]
[362501312,1748341833315,-400.0,0.00019178,2]
[362501313,1748341833326,-430.0,0.00019178,2]
[362501314,1748341833336,-514.68261722,0.00019178,2]
[362501315,1748341833347,-400.0,0.00019178,2]
[362501316,1748341833357,-430.0,0.00019178,2]
[362501317,1748341833367,-400.0,0.00019178,2]
[362501318,1748341833377,-400.0,0.00019178,2]
[362501319,1748341833387,-430.0,0.00019178,2]
[362501320,1748341833396,-440.0,0.00019178,2]
[362501321,1748341833406,-400.0,0.00019178,2]
[362501322,1748341833416,-430.0,0.00019178,2]
[362501323,1748341833426,-400.0,0.00019178,2]
[362501324,1748341833436,-400.0,0.00019178,2]
[362501325,1748341833449,-310.97404853,0.00019178,2]
[362501326,1748341833459,-402.68276305,0.00019178,2]
[362501327,1748341833469,-394.71179927,0.00019178,2]
[362501328,1748341833479,-403.3412289,0.00019178,2]
[362501329,1748341833490,-450.0,0.00019178,2]
[362501330,1748341833501,-472.80336111,0.00019178,2]
[362501331,1748341833511,-430.0,0.00019178,2]
[362501332,1748341833522,-482.03,0.00019178,2]
[362501333,1748341833532,-400.0,0.00019178,2]
[362501334,1748341833543,-430.0,0.00019178,2]
[362501335,1748341833552,-400.34684328,0.00019178,2]
[362501336,1748341833562,-400.0,0.00019178,2]
[362501337,1748341833573,-430.0,0.00019178,2]
[362501338,1748341833583,-400.0,0.00019178,2]
[362501339,1748341833593,-430.0,0.00019178,2]
[362501340,1748341833602,-430.0,0.00019178,2]
[362501341,1748341833614,-400.0,0.00019178,2]
[362501342,1748341833624,-450.0,0.00019178,2]
[362501343,1748341833635,-430.0,0.00019178,2]
[362501344,1748341833645,-430.0,0.00019178,2]
[362501345,1748341833655,-220.0,0.00019178,2]
[362501346,1748341833666,-430.0,0.00019178,2]
[362501347,1748341833676,-430.0,0.00019178,2]
[362501348,1748341833686,-400.96864304,0.00019178,2]
[362501349,1748341833696,-430.0,0.00019178,2]
[362501350,1748341833706,-430.0,0.00019178,2]
[362501351,1748341833717,-450.0,0.00019178,2]
[362501352,1748341833727,-354.78945124,0.00019178,2]
[362501353,1748341833737,-430.0,0.00019178,2]
[362501354,1748341833747,-450.0,0.00019178,2]
[362501355,1748341833757,-374.35037232,0.00019178,2]
[362501356,1748341833767,-400.0,0.00019178,2]
[362501357,1748341833777,-430.0,0.00019178,2]
[362501358,1748341833787,-430.0,0.00019178,2]
[362501359,1748341833798,-430.0,0.00019178,2]
[362501360,1748341833808,-430.0,0.00019178,2]
[362501361,1748341833818,-430.0,0.00019178,2]
[362501362,1748341833828,-500.0,0.00019178,2]
[362501363,1748341833837,-500.0,0.00019178,2]
[362501364,1748341833847,-500.0,0.00019178,2]
[362501365,1748341833857,-500.0,0.00019178,2]
[362501366,1748341833867,-500.0,0.00019178,2]
[362501367,1748341833876,-500.0,0.00019178,2]
[362501368,1748341833887,-500.0,0.00019178,2]
[362501369,1748341833897,-430.0,0.00019178,2]
[362501370,1748341833907,-450.0,0.00019178,2]
[362501371,1748341833917,-430.0,0.00019178,2]
[362501372,1748341833927,-430.0,0.00019178,2]
[362501373,1748341833937,-430.0,0.00019178,2]
[362501374,1748341833947,-294.19378114,0.00019178,2]
[362501375,1748341833958,-430.0,0.00019178,2]
[362501376,1748341833969,-401.67420711,0.00019178,2]
[362501377,1748341833979,-430.0,0.00019178,2]
[362501378,1748341833990,-430.0,0.00019178,2]
[362501379,1748341834001,-272.19913309,0.00019178,2]
[362501380,1748341834011,-251.19360221,0.00019178,2]
[362501381,1748341834021,-422.8025939,0.00019178,2]
[362501382,1748341834032,-430.0,0.00019178,2]
[362501383,1748341834042,-430.0,0.00019178,2]
[362501384,1748341834052,-430.0,0.00019178,2]
[362501385,1748341834062,-430.0,0.00019178,2]
[362501386,1748341834073,-430.0,0.00019178,2]
[362501387,1748341834083,-430.0,0.00019178,2]
[362501388,1748341834093,-430.0,0.00019178,2]
[362501389,1748341834104,-498.87,0.00019178,2]
[362501390,1748341834114,-430.0,0.00019178,2]
[362501391,1748341834125,-430.0,0.00019178,2]
[362501392,1748341834135,-430.0,0.00019178,2]
[362501393,1748341834144,-430.0,0.00019178,2]
[362501394,1748341834155,-420.0,0.00019178,2]
[362501395,1748341834165,-400.0,0.00019178,2]
[362501396,1748341834175,-430.0,0.00019178,2]
[362501397,1748341834185,-430.0,0.00019178,2]
[362501398,1748341834197,-500.0,0.00019178,2]
[362501399,1748341834208,-500.0,0.00019178,2]
[362501400,1748341834218,-405.2000884,0.00019178,2]
[362501401,1748341834228,-500.0,0.00019178,2]
[362501402,1748341834238,-500.0,0.00019178,2]
[362501403,1748341834250,-531.82908056,0.00019178,2]
[362501404,1748341834262,-309.41176861,0.00019178,2]
[362501405,1748341834273,-423.08,0.00019178,2]
[362501406,1748341834284,-430.0,0.00019178,2]
[362501407,1748341834294,-516.15491824,0.00019178,2]
[362501408,1748341834306,-450.0,0.00019178,2]
[362501409,1748341834315,-430.0,0.00019178,2]
[362501410,1748341834326,-400.0,0.00019178,2]
[362501411,1748341834337,-430.0,0.00019178,2]
[362501412,1748341834348,-430.0,0.00019178,2]
[362501413,1748341834359,-450.0,0.00019178,2]
[362501414,1748341834370,-430.0,0.00019178,2]
[362501415,1748341834380,-430.0,0.00019178,2]
[362501416,1748341834391,-152.89927351,0.00019178,2]
[362501417,1748341834402,-450.0,0.00019178,2]
[362501418,1748341834412,-450.0,0.00019178,2]
[362501419,1748341834422,-357.69264255,0.00019178,2]
[362501420,1748341834432,-450.0,0.00019178,2]
[362501421,1748341834443,-430.0,0.00019178,2]
[362501422,1748341834457,-450.0,0.00019178,2]
[362501423,1748341834467,-450.0,0.00019178,2]
[362501424,1748341834477,-430.0,0.00019178,2]
[362501425,1748341834487,-430.0,0.00019178,2]
[362501426,1748341834496,-430.0,0.00019178,2]
[362501427,1748341834510,-351.57944382,0.00019178,2]
[362501428,1748341834521,-386.36477872,0.00019178,2]
[362501429,1748341834532,-350.0,0.00019178,2]
[362501430,1748341834544,-351.41348252,0.00019178,2]
[362501431,1748341834554,-430.0,0.00019178,2]
[362501432,1748341834566,-350.0,0.00019178,2]
[362501433,1748341834577,-570.62,0.00019178,2]
[362501434,1748341834588,-430.0,0.00019178,2]
[362501435,1748341834601,-450.0,0.00019178,2]
[362501436,1748341834612,-450.0,0.00019178,2]
[362501437,1748341834624,-413.52744021,0.00019178,2]
[362501438,1748341834635,-430.0,0.00019178,2]
[362501439,1748341834646,-402.07377828,0.00019178,2]
[362501440,1748341834658,-504.69,0.00019178,2]
[362501441,1748341834668,-430.0,0.00019178,2]
[362501442,1748341834679,-151.87077658,0.00019178,2]
[362501443,1748341834691,-401.82318136,0.00019178,2]
[362501444,1748341834700,-151.63637179,0.00019178,2]
[362501445,1748341834711,-430.0,0.00019178,2]
[362501446,1748341834720,-151.32749821,0.00019178,2]
[362501447,1748341834731,-152.71397158,0.00019178,2]
[362501448,1748341834742,-200.59600502,0.00019178,2]
[362501449,1748341834757,-151.75780555,0.00019178,2]
[362501450,1748341834768,-430.0,0.00019178,2]
[362501451,1748341834779,-152.43447276,0.00019178,2]
[362501452,1748341834789,-151.38028213,0.00019178,2]
[362501453,1748341834800,-430.0,0.00019178,2]
[362501454,1748341834810,-252.84466106,0.00019178,2]
[362501455,1748341834820,-430.0,0.00019178,2]
[362501456,1748341834830,-151.45057058,0.00019178,2]
[362501457,1748341834839,-430.0,0.00019178,2]
[362501458,1748341834850,-151.39203379,0.00019178,2]
[362501459,1748341834860,-151.7097801,0.00019178,2]
[362501460,1748341834871,-430.0,0.00019178,2]
[362501461,1748341834881,-430.0,0.00019178,2]
[362501462,1748341834891,-151.47034075,0.00019178,2]
[362501463,1748341834901,-246.37010115,0.00019178,2]
[362501464,1748341834911,-430.0,0.00019178,2]
[362501465,1748341834921,-401.98221324,0.00019178,2]
[362501466,1748341834931,-350.0,0.00019178,2]
[362501467,1748341834940,-430.0,0.00019178,2]
[362501468,1748341834950,-430.0,0.00019178,2]
[362501469,1748341834960,-1000.0,0.00019178,2]
[362501470,1748341834971,-403.01610068,0.00019178,2]
[362501471,1748341834981,-400.0,0.00019178,2]
[362501472,1748341834991,-430.0,0.00019178,2]
[362501473,1748341835003,-430.0,0.00019178,2]
[362501474,1748341835013,-430.0,0.00019178,2]
[362501475,1748341835022,-430.0,0.00019178,2]
[362501476,1748341835032,-441.06,0.00019178,2]
[362501477,1748341835042,-430.0,0.00019178,2]
[362501478,1748341835052,-521.49,0.00019178,2]
[362501479,1748341835062,-402.62254269,0.00019178,2]
[362501480,1748341835072,-353.42537442,0.00019178,2]
[362501481,1748341835082,-430.0,0.00019178,2]
[362501482,1748341835092,-430.0,0.00019178,2]
[362501483,1748341835103,-489.79383217,0.00019178,2]
[362501484,1748341835114,-430.0,0.00019178,2]
[362501485,1748341835124,-430.0,0.00019178,2]
[362501486,1748341835133,-430.0,0.00019178,2]
[362501487,1748341835143,-430.0,0.00019178,2]
[362501488,1748341835152,-450.0,0.00019178,2]
[362501489,1748341835162,-430.0,0.00019178,2]
[362501490,1748341835171,-262.75620522,0.00019178,2]
[362501491,1748341835180,-430.0,0.00019178,2]
[362501492,1748341835190,-457.37422099,0.00019178,2]
[362501493,1748341835199,-430.0,0.00019178,2]
[362501494,1748341835208,-430.0,0.00019178,2]
[362501495,1748341835217,-430.0,0.00019178,2]
[362501496,1748341835226,-464.47531691,0.00019178,2]
[362501497,1748341835236,-430.0,0.00019178,2]
[362501498,1748341835246,-430.0,0.00019178,2]
[362501499,1748341835259,-430.0,0.00019178,2]
[362501500,1748341835269,-151.56257816,0.00019178,2]
[362501501,1748341835278,-151.0,0.00019178,2]
[362501502,1748341835288,-353.01183693,0.00019178,2]
[362501503,1748341835298,-430.0,0.00019178,2]
[362501504,1748341835307,-400.0,0.00019178,2]
[362501505,1748341835317,-151.0,0.00019178,2]
[362501506,1748341835327,-430.0,0.00019178,2]
[362501507,1748341835449,-151.0,0.00019178,2]
[362501508,1748341835461,-151.0,0.00019178,2]
[362501509,1748341835471,-400.0,0.00019178,2]
[362501510,1748341835481,-355.83676872,0.00019178,2]
[362501511,1748341835491,-151.0,0.00019178,2]
[362501512,1748341835503,-404.37917613,0.00019178,2]
[362501513,1748341835512,-151.0,0.00019178,2]
[362501514,1748341835522,-151.7605106,0.00019178,2]
[362501515,1748341835531,-450.0,0.00019178,2]
[362501516,1748341835541,-430.0,0.00019178,2]
[362501517,1748341835551,-430.0,0.00019178,2]
[362501518,1748341835560,-430.0,0.00019178,2]
[362501519,1748341835569,-430.0,0.00019178,2]
[362501520,1748341835579,-430.0,0.00019178,2]
[362501521,1748341835588,-400.0,0.00019178,2]
[362501522,1748341835598,-431.41334834,0.00019178,2]
[362501523,1748341835607,-430.0,0.00019178,2]
[362501524,1748341835616,-430.0,0.00019178,2]
[362501525,1748341835626,-430.0,0.00019178,2]
[362501526,1748341835635,-430.0,0.00019178,2]
[362501527,1748341835644,-450.0,0.00019178,2]
[362501528,1748341835654,-430.0,0.00019178,2]
[362501529,1748341835663,-430.0,0.00019178,2]
[362501530,1748341835674,-400.0,0.00019178,2]
[362501531,1748341835683,-453.72519588,0.00019178,2]
[362501532,1748341835692,-420.0,0.00019178,2]
[362501533,1748341835702,-404.11659651,0.00019178,2]
[362501534,1748341835711,-451.84824957,0.00019178,2]
[362501535,1748341835720,-430.0,0.00019178,2]
[362501536,1748341835730,-403.57839012,0.00019178,2]
[362501537,1748341835740,-430.0,0.00019178,2]
[362501538,1748341835752,-453.78701563,0.00019178,2]
[362501539,1748341835765,-430.0,0.00019178,2]
[362501540,1748341835774,-450.0,0.00019178,2]
[362501541,1748341835783,-430.0,0.00019178,2]
[362501542,1748341835793,-430.0,0.00019178,2]
[362501543,1748341835803,-430.0,0.00019178,2]
[362501544,1748341835813,-430.0,0.00019178,2]
[362501545,1748341835822,-450.0,0.00019178,2]
[362501546,1748341835832,-430.0,0.00019178,2]
[362501547,1748341835842,-430.0,0.00019178,2]
[362501548,1748341835853,-453.90236767,0.00019178,2]
[362501549,1748341835865,-450.0,0.00019178,2]
[362501550,1748341835875,-430.0,0.00019178,2]
[362501551,1748341835886,-430.0,0.00019178,2]
[362501552,1748341835896,-450.0,0.00019178,2]
[362501553,1748341835907,-430.0,0.00019178,2]
[362501554,1748341835917,-430.0,0.00019178,2]
[362501555,1748341835927,-457.19320164,0.00019178,2]
[362501556,1748341835938,-430.0,0.00019178,2]
[362501557,1748341835949,-402.1012051,0.00019178,2]
[362501558,1748341835959,-451.8245735,0.00019178,2]
[362501559,1748341835971,-430.0,0.00019178,2]
[362501560,1748341835982,-430.0,0.00019178,2]
[362501561,1748341835993,-400.0,0.00019178,2]
[362501562,1748341836010,-430.0,0.00019178,2]
[362501563,1748341836021,-402.33134255,0.00019178,2]
[362501564,1748341836031,-402.76317071,0.00019178,2]
[362501565,1748341836041,-430.0,0.00019178,2]
[362501566,1748341836051,-456.54368725,0.00019178,2]
[362501567,1748341836062,-430.0,0.00019178,2]
[362501568,1748341836073,-430.0,0.00019178,2]
[362501569,1748341836083,-430.0,0.00019178,2]
[362501570,1748341836093,-403.93304414,0.00019178,2]
[362501571,1748341836103,-430.0,0.00019178,2]
[362501572,1748341836112,-470.0,0.00019178,2]
[362501573,1748341836122,-430.0,0.00019178,2]
[362501574,1748341836131,-430.0,0.00019178,2]
[362501575,1748341836142,-430.0,0.00019178,2]
[362501576,1748341836152,-450.0,0.00019178,2]
[362501577,1748341836162,-430.0,0.00019178,2]
[362501578,1748341836173,-450.0,0.00019178,2]
[362501579,1748341836182,-430.0,0.00019178,2]
[362501580,1748341836193,-430.0,0.00019178,2]
[362501581,1748341836202,-458.02326878,0.00019178,2]
[362501582,1748341836213,-450.0,0.00019178,2]
[362501583,1748341836222,-430.0,0.00019178,2]
[362501584,1748341836232,-450.0,0.00019178,2]
[362501585,1748341836242,-433.49328409,0.00019178,2]
[362501586,1748341836255,-430.0,0.00019178,2]
[362501587,1748341836265,-454.34230116,0.00019178,2]
[362501588,1748341836275,-400.0,0.00019178,2]
[362501589,1748341836285,-430.0,0.00019178,2]
[362501590,1748341836295,-284.26902945,0.00019178,2]
[362501591,1748341836306,-430.0,0.00019178,2]
[362501592,1748341836318,-403.58921252,0.00019178,2]
[362501593,1748341836329,-430.0,0.00019178,2]
[362501594,1748341836339,-402.64671624,0.00019178,2]
[362501595,1748341836348,-506.47451408,0.00019178,2]
[362501596,1748341836358,-430.0,0.00019178,2]
[362501597,1748341836367,-430.0,0.00019178,2]
[362501598,1748341836377,-430.0,0.00019178,2]
[362501599,1748341836387,-430.0,0.00019178,2]
[362501600,1748341836397,-450.0,0.00019178,2]
[362501601,1748341836407,-430.0,0.00019178,2]
[362501602,1748341836417,-151.0,0.00019178,2]
[362501603,1748341836428,-311.18,0.00019178,2]
[362501604,1748341836438,-268.26683093,0.00019178,2]
[362501605,1748341836453,-457.51563763,0.00019178,2]
[362501606,1748341836462,-206.0368149,0.00019178,2]
[362501607,1748341836472,-430.0,0.00019178,2]
[362501608,1748341836482,-430.0,0.00019178,2]
[362501609,1748341836492,-408.66051867,0.00019178,2]
[362501610,1748341836504,-151.1131897,0.00019178,2]
[362501611,1748341836514,-151.0,0.00019178,2]
[362501612,1748341836524,-430.0,0.00019178,2]
[362501613,1748341836535,-151.0,0.00019178,2]
[362501614,1748341836545,-430.0,0.00019178,2]
[362501615,1748341836554,-151.0,0.00019178,2]
[362501616,1748341836564,-3995.62,0.00019178,2]
[362501617,1748341836574,-473.91,0.00019178,2]
[362501618,1748341836584,-151.08712716,0.00019178,2]
[362501619,1748341836593,-430.0,0.00019178,2]
[362501620,1748341836603,-430.0,0.00019178,2]
[362501621,1748341836612,-225.38155522,0.00019178,2]
[362501622,1748341836622,-270.33610441,0.00019178,2]
[362501623,1748341836632,-151.0,0.00019178,2]
[362501624,1748341836642,-430.0,0.00019178,2]
[362501625,1748341836652,-151.25375673,0.00019178,2]
[362501626,1748341836662,-430.0,0.00019178,2]
[362501627,1748341836674,-151.10979024,0.00019178,2]
[362501628,1748341836688,-151.0,0.00019178,2]
[362501629,1748341836703,-430.0,0.00019178,2]
[362501630,1748341836718,-151.0,0.00019178,2]
[362501631,1748341836732,-151.0,0.00019178,2]
[362501632,1748341836746,-230.29321864,0.00019178,2]
[362501633,1748341836760,-430.0,0.00019178,2]
[362501634,1748341836771,-430.0,0.00019178,2]
[362501635,1748341836784,-430.0,0.00019178,2]
[362501636,1748341836798,-151.0,0.00019178,2]
[362501637,1748341836811,-151.0,0.00019178,2]
[362501638,1748341836824,-151.0,0.00019178,2]
[362501639,1748341836838,-151.0,0.00019178,2]
[362501640,1748341836851,-430.0,0.00019178,2]
[362501641,1748341836864,-430.0,0.00019178,2]
[362501642,1748341836876,-480.09434731,0.00019178,2]
[362501643,1748341836889,-430.0,0.00019178,2]
[362501644,1748341836902,-450.0,0.00019178,2]
[362501645,1748341836916,-500.0,0.00019178,2]
[362501646,1748341836929,-430.0,0.00019178,2]
[362501647,1748341836941,-430.0,0.00019178,2]
[362501648,1748341836953,-430.0,0.00019178,2]
[362501649,1748341836965,-430.0,0.00019178,2]
[362501650,1748341836977,-430.0,0.00019178,2]
[362501651,1748341836988,-430.0,0.00019178,2]
[362501652,1748341837002,-430.65148083,0.00019178,2]
[362501653,1748341837013,-161.89722604,0.00019178,2]
[362501654,1748341837026,-430.0,0.00019178,2]
[362501655,1748341837039,-430.0,0.00019178,2]
[362501656,1748341837053,-541.81892531,0.00019178,2]
[362501657,1748341837064,-470.0,0.00019178,2]
[362501658,1748341837077,-450.0,0.00019178,2]
[362501659,1748341837087,-500.0,0.00019178,2]
[362501660,1748341837098,-151.0,0.00019205,2]
[362501661,1748341837109,-151.0,0.00019205,2]
[362501662,1748341837122,-151.0,0.00019205,2]
[362501663,1748341837133,-151.0,0.00019205,2]
[362501664,1748341837144,-151.0,0.00019205,2]
[362501665,1748341837157,-151.0,0.00019205,2]
[362501666,1748341837169,-151.0,0.00019205,2]
[362501667,1748341837181,-151.0,0.00019205,2]
[362501668,1748341837193,-151.0,0.00019205,2]
[362501669,1748341837205,-151.0,0.00019205,2]
[362501670,1748341837219,-151.0,0.00019205,2]
[362501671,1748341837232,-151.0,0.00019205,2]
[362501672,1748341837246,-151.0,0.00019205,2]
[362501673,1748341837260,-151.0,0.00019205,2]
[362501674,1748341837273,-151.0,0.00019205,2]
[362501675,1748341837284,-151.0,0.00019205,2]
[362501676,1748341837295,-198.0,0.00019233,2]
[362501677,1748341837305,-198.67249483,0.00019233,2]
[362501678,1748341837316,-198.55747489,0.00019233,2]